fUSD/lending_fUSD_20250105
["ID","MTS","AMOUNT","RATE_DAILY","PERIOD"]
[347749682,1736093466774,-260.19317824,9.779e-05,2]
[347749683,1736093466784,-556.24372645,9.779e-05,2]
[347749684,1736093466794,-556.24372645,9.779e-05,2]
[347749685,1736093466804,-8664.11395084,9.779e-05,2]
[347749686,1736093466814,-1520.47881383,9.779e-05,2]
[347749687,1736093466823,-244.87926665,9.78e-05,2]
[347749688,1736093466833,-260.19317824,9.78e-05,2]
[347749689,1736093466842,-200.0,9.781e-05,2]
[347749690,1736093466852,-65377.9491911,9.782e-05,2]
[347749691,1736093466861,-489.75853332,9.782e-05,2]
[347749692,1736093466871,-260.19317824,9.783e-05,2]
[347749693,1736093466881,-12152.35467256,9.783e-05,2]
[347749694,1736093466891,-12152.35467256,9.783e-05,2]
[347749695,1736093466901,-9573.21887826,9.783e-05,2]
[347749696,1736093466911,-244.87926665,9.783e-05,2]
[347749697,1736093466919,-556.24372645,9.784e-05,2]
[347749698,1736093466932,-12152.35467256,9.784e-05,2]
[347749699,1736093466942,-244.87926665,9.784e-05,2]
[347749700,1736093466951,-65377.9491911,9.784e-05,2]
[347749701,1736093466961,-522.92669304,9.784e-05,2]
[347749702,1736093466971,-852.9979495,9.785e-05,2]
[347749703,1736093466980,-9573.21887826,9.785e-05,2]
[347749704,1736093466990,-852.9979495,9.785e-05,2]
[347749705,1736093467000,-489.75853332,9.786e-05,2]
[347749706,1736093467009,-260.19317824,9.786e-05,2]
[347749707,1736093467019,-522.92669304,9.786e-05,2]
[347749708,1736093467029,-852.9979495,9.787e-05,2]
[347749709,1736093467038,-9573.21887826,9.787e-05,2]
[347749710,1736093467048,-489.75853332,9.788e-05,2]
[347749711,1736093467058,-522.92669304,9.789e-05,2]
[347749712,1736093467067,-522.92669304,9.789e-05,2]
[347749713,1736093467077,-8664.11395084,9.79e-05,2]
[347749714,1736093467086,-12152.35467256,9.79e-05,2]
[347749715,1736093467096,-8664.11395084,9.791e-05,2]
[347749716,1736093467106,-260.19317824,9.791e-05,2]
[347749717,1736093467115,-522.92669304,9.791e-05,2]
[347749718,1736093467125,-489.75853332,9.791e-05,2]
[347749719,1736093467135,-200.0,9.793e-05,2]
[347749720,1736093467145,-65377.9491911,9.795e-05,2]
[347749721,1736093467154,-522.92669304,9.796e-05,2]
[347749722,1736093467164,-200.0,9.796e-05,2]
[347749723,1736093467174,-8664.11395084,9.796e-05,2]
[347749724,1736093467184,-9573.21887826,9.796e-05,2]
[347749725,1736093467194,-12152.35467256,9.797e-05,2]
[347749726,1736093467203,-260.19317824,9.797e-05,2]
[347749727,1736093467213,-1520.47881383,9.797e-05,2]
[347749728,1736093467223,-852.9979495,9.797e-05,2]
[347749729,1736093467233,-200.0,9.798e-05,2]
[347749730,1736093467243,-9573.21887826,9.798e-05,2]
[347749731,1736093467253,-852.9979495,9.798e-05,2]
[347749732,1736093467262,-556.24372645,9.799e-05,2]
[347749733,1736093467272,-244.87926665,9.799e-05,2]
[347749734,1736093467281,-9573.21887826,9.799e-05,2]
[347749735,1736093467290,-65377.9491911,9.799e-05,2]
[347749736,1736093467300,-244.87926665,9.8e-05,2]
[347749737,1736093467311,-2003.28,9.8e-05,2]
[347749738,1736093467321,-171.073,9.806e-05,2]
[347749739,1736093467331,-2542.719,9.806e-05,2]
[347749740,1736093467341,-150.0,9.838e-05,2]
[347749741,1736093467351,-500.0,9.863e-05,2]
[347749742,1736093467361,-500.0,9.863e-05,2]
[347749743,1736093467371,-500.0,9.863e-05,2]
[347749744,1736093467381,-500.0,9.863e-05,2]
[347749745,1736093467391,-518.61,9.863e-05,2]
[347749746,1736093467401,-500.0,9.863e-05,2]
[347749747,1736093467410,-1944.31,9.863e-05,2]
[347749748,1736093467420,-500.0,9.863e-05,2]
[347749749,1736093467431,-500.0,9.863e-05,2]
[347749750,1736093467441,-500.0,9.863e-05,2]
[347749751,1736093467452,-500.0,9.863e-05,2]
[347749752,1736093467461,-513.01,9.863e-05,2]
[347749753,1736093467470,-1116.95,9.863e-05,2]
[347749754,1736093467480,-647.32,9.863e-05,2]
[347749755,1736093467494,-412.56949938,9.863e-05,2]
[347749756,1736093467503,-500.0,9.863e-05,2]
[347749757,1736093467514,-1247.07,9.863e-05,2]
[347749758,1736093467524,-710.57,9.863e-05,2]
[347749759,1736093467535,-785.01,9.863e-05,2]
[347749760,1736093467544,-2074.96,9.863e-05,2]
[347749761,1736093467554,-500.0,9.863e-05,2]
[347749762,1736093467566,-1942.88,9.863e-05,2]
[347749763,1736093467575,-500.0,9.863e-05,2]
[347749764,1736093467585,-582.62,9.863e-05,2]
[347749765,1736093467594,-500.0,9.863e-05,2]
[347749766,1736093467604,-5066.49,9.863e-05,2]
[347749767,1736093467614,-1196.95,9.863e-05,2]
[347749768,1736093467624,-500.0,9.863e-05,2]
[347749769,1736093467634,-500.0,9.863e-05,2]
[347749770,1736093467643,-651.13,9.863e-05,2]
[347749771,1736093467653,-1012.85,9.863e-05,2]
[347749772,1736093467663,-500.0,9.863e-05,2]
[347749773,1736093467675,-511.08,9.863e-05,2]
[347749774,1736093467685,-766.4,9.863e-05,2]
[347749775,1736093467694,-1917.18,9.863e-05,2]
[347749776,1736093467704,-500.0,9.863e-05,2]
[347749777,1736093467713,-751.14,9.863e-05,2]
[347749778,1736093467723,-156.995149,9.863e-05,2]
[347749779,1736093467732,-500.0,9.863e-05,2]
[347749780,1736093467742,-952.56,9.863e-05,2]
[347749781,1736093467751,-754.41,9.863e-05,2]
[347749782,1736093467761,-1737.28,9.863e-05,2]
[347749783,1736093467770,-886.39,9.863e-05,2]
[347749784,1736093467780,-500.0,9.863e-05,2]
[347749785,1736093467790,-500.0,9.863e-05,2]
[347749786,1736093467800,-500.0,9.863e-05,2]
[347749787,1736093467809,-526.36,9.863e-05,2]
[347749788,1736093467819,-737.15,9.863e-05,2]
[347749789,1736093467829,-500.0,9.863e-05,2]
[347749790,1736093467838,-3524.74,9.863e-05,2]
[347749791,1736093467848,-500.0,9.863e-05,2]
[347749792,1736093467858,-500.0,9.863e-05,2]
[347749793,1736093467868,-761.43,9.863e-05,2]
[347749794,1736093467877,-500.0,9.863e-05,2]
[347749795,1736093467888,-500.0,9.863e-05,2]
[347749796,1736093467898,-642.49,9.863e-05,2]
[347749797,1736093467907,-562.21,9.863e-05,2]
[347749798,1736093467917,-735.44,9.863e-05,2]
[347749799,1736093467928,-500.0,9.863e-05,2]
[347749800,1736093467938,-500.0,9.863e-05,2]
[347749801,1736093467947,-3187.24,9.863e-05,2]
[347749802,1736093467957,-882.75,9.863e-05,2]
[347749803,1736093467966,-546.34,9.863e-05,2]
[347749804,1736093467976,-520.15,9.863e-05,2]
[347749805,1736093467985,-500.0,9.863e-05,2]
[347749806,1736093467995,-649.07,9.863e-05,2]
[347749807,1736093468005,-844.88,9.863e-05,2]
[347749808,1736093468014,-2003.22,9.863e-05,2]
[347749809,1736093468024,-774.09,9.863e-05,2]
[347749810,1736093468034,-500.0,9.863e-05,2]
[347749811,1736093468044,-528.73,9.863e-05,2]
[347749812,1736093468054,-852.93,9.863e-05,2]
[347749813,1736093468064,-500.0,9.863e-05,2]
[347749814,1736093468073,-500.0,9.863e-05,2]
[347749815,1736093468083,-810.2,9.863e-05,2]
[347749816,1736093468093,-829.01,9.863e-05,2]
[347749817,1736093468102,-531.05,9.863e-05,2]
[347749818,1736093468112,-682.3,9.863e-05,2]
[347749819,1736093468121,-549.67,9.863e-05,2]
[347749820,1736093468131,-2055.76,9.863e-05,2]
[347749821,1736093468141,-543.01,9.863e-05,2]
[347749822,1736093468151,-500.0,9.863e-05,2]
[347749823,1736093468160,-500.0,9.863e-05,2]
[347749824,1736093468170,-500.0,9.863e-05,2]
[347749825,1736093468181,-2363.08,9.863e-05,2]
[347749826,1736093468190,-715.52,9.863e-05,2]
[347749827,1736093468201,-608.96,9.863e-05,2]
[347749828,1736093468210,-500.0,9.863e-05,2]
[347749829,1736093468219,-500.0,9.863e-05,2]
[347749830,1736093468229,-500.0,9.863e-05,2]
[347749831,1736093468239,-511.54,9.863e-05,2]
[347749832,1736093468249,-816.37,9.863e-05,2]
[347749833,1736093468258,-547.7,9.863e-05,2]
[347749834,1736093468269,-2036.65,9.863e-05,2]
[347749835,1736093468279,-710.61,9.863e-05,2]
[347749836,1736093468288,-540.03,9.863e-05,2]
[347749837,1736093468298,-560.43,9.863e-05,2]
[347749838,1736093468309,-500.0,9.863e-05,2]
[347749839,1736093468319,-1095.6,9.863e-05,2]
[347749840,1736093468329,-587.66,9.863e-05,2]
[347749841,1736093468339,-500.0,9.863e-05,2]
[347749842,1736093468349,-946.46,9.863e-05,2]
[347749843,1736093468359,-392.7866237,9.863e-05,2]
[347749844,1736093468369,-500.0,9.863e-05,2]
[347749845,1736093468379,-584.75,9.863e-05,2]
[347749846,1736093468389,-777.09,9.863e-05,2]
[347749847,1736093468399,-500.0,9.863e-05,2]
[347749848,1736093468410,-500.0,9.863e-05,2]
[347749849,1736093468420,-472.38975674,9.863e-05,2]
[347749850,1736093468431,-500.0,9.863e-05,2]
[347749851,1736093468441,-500.0,9.863e-05,2]
[347749852,1736093468451,-500.0,9.863e-05,2]
[347749853,1736093468460,-660.74,9.863e-05,2]
[347749854,1736093468470,-836.67,9.863e-05,2]
[347749855,1736093468481,-415.1,9.863e-05,2]
[347749856,1736093468495,-3034.01,9.863e-05,2]
[347749857,1736093468508,-645.35,9.863e-05,2]
[347749858,1736093468518,-1046.1,9.863e-05,2]
[347749859,1736093468528,-3701.46,9.863e-05,2]
[347749860,1736093468538,-941.56,9.863e-05,2]
[347749861,1736093468548,-500.0,9.863e-05,2]
[347749862,1736093468559,-500.0,9.863e-05,2]
[347749863,1736093468569,-568.91,9.863e-05,2]
[347749864,1736093468580,-833.84,9.863e-05,2]
[347749865,1736093468590,-820.61,9.863e-05,2]
[347749866,1736093468600,-582.64,9.863e-05,2]
[347749867,1736093468611,-621.13,9.863e-05,2]
[347749868,1736093468620,-501.63,9.863e-05,2]
[347749869,1736093468631,-500.0,9.863e-05,2]
[347749870,1736093468641,-615.11,9.863e-05,2]
[347749871,1736093468650,-649.76,9.863e-05,2]
[347749872,1736093468661,-500.0,9.863e-05,2]
[347749873,1736093468671,-868.56,9.863e-05,2]
[347749874,1736093468682,-1688.62,9.863e-05,2]
[347749875,1736093468692,-3762.06,9.863e-05,2]
[347749876,1736093468702,-1145.74,9.863e-05,2]
[347749877,1736093468712,-525.35,9.863e-05,2]
[347749878,1736093468722,-574.53,9.863e-05,2]
[347749879,1736093468733,-500.0,9.863e-05,2]
[347749880,1736093468742,-702.61,9.863e-05,2]
[347749881,1736093468752,-553.77,9.863e-05,2]
[347749882,1736093468763,-898.96,9.863e-05,2]
[347749883,1736093468773,-1387.22,9.863e-05,2]
[347749884,1736093468783,-574.79,9.863e-05,2]
[347749885,1736093468794,-549.17,9.863e-05,2]
[347749886,1736093468804,-729.47,9.863e-05,2]
[347749887,1736093468814,-910.32,9.863e-05,2]
[347749888,1736093468824,-500.0,9.863e-05,2]
[347749889,1736093468834,-970.62,9.863e-05,2]
[347749890,1736093468845,-500.0,9.863e-05,2]
[347749891,1736093468855,-527.29,9.863e-05,2]
[347749892,1736093468865,-500.0,9.863e-05,2]
[347749893,1736093468875,-500.0,9.863e-05,2]
[347749894,1736093468884,-500.0,9.863e-05,2]
[347749895,1736093468895,-676.38,9.863e-05,2]
[347749896,1736093468905,-879.45,9.863e-05,2]
[347749897,1736093468915,-504.21,9.863e-05,2]
[347749898,1736093468925,-701.89,9.863e-05,2]
[347749899,1736093468935,-919.5,9.863e-05,2]
[347749900,1736093468946,-652.07,9.863e-05,2]
[347749901,1736093469184,-500.0,9.863e-05,2]
[347749902,1736093469238,-500.0,9.863e-05,2]
[347749903,1736093469248,-899.28,9.863e-05,2]
[347749904,1736093469257,-605.08,9.863e-05,2]
[347749905,1736093469267,-878.43,9.863e-05,2]
[347749906,1736093469276,-500.0,9.863e-05,2]
[347749907,1736093469286,-867.42,9.863e-05,2]
[347749908,1736093469295,-1210.23,9.863e-05,2]
[347749909,1736093469305,-1086.36,9.863e-05,2]
[347749910,1736093469315,-676.02,9.863e-05,2]
[347749911,1736093469324,-767.55,9.863e-05,2]
[347749912,1736093469333,-853.53,9.863e-05,2]
[347749913,1736093469344,-500.0,9.863e-05,2]
[347749914,1736093469353,-500.0,9.863e-05,2]
[347749915,1736093469363,-500.0,9.863e-05,2]
[347749916,1736093469372,-705.93,9.863e-05,2]
[347749917,1736093469382,-500.0,9.863e-05,2]
[347749918,1736093469392,-500.0,9.863e-05,2]
[347749919,1736093469402,-914.97,9.863e-05,2]
[347749920,1736093469411,-500.0,9.863e-05,2]
[347749921,1736093469421,-675.73,9.863e-05,2]
[347749922,1736093469431,-672.42,9.863e-05,2]
[347749923,1736093469441,-727.18,9.863e-05,2]
[347749924,1736093469450,-500.0,9.863e-05,2]
[347749925,1736093469460,-500.0,9.863e-05,2]
[347749926,1736093469469,-567.84,9.863e-05,2]
[347749927,1736093469479,-552.49,9.863e-05,2]
[347749928,1736093469491,-500.0,9.863e-05,2]
[347749929,1736093469501,-764.16,9.863e-05,2]
[347749930,1736093469511,-1325.59,9.863e-05,2]
[347749931,1736093469521,-543.8,9.863e-05,2]
[347749932,1736093469531,-643.31,9.863e-05,2]
[347749933,1736093469541,-681.31,9.863e-05,2]
[347749934,1736093469551,-1100.99,9.863e-05,2]
[347749935,1736093469560,-500.0,9.863e-05,2]
[347749936,1736093469572,-554.91,9.863e-05,2]
[347749937,1736093469583,-572.41,9.863e-05,2]
[347749938,1736093469592,-500.0,9.863e-05,2]
[347749939,1736093469601,-980.48,9.863e-05,2]
[347749940,1736093469610,-578.15,9.863e-05,2]
[347749941,1736093469620,-631.99,9.863e-05,2]
[347749942,1736093469629,-1267.42,9.863e-05,2]
[347749943,1736093469639,-680.55,9.863e-05,2]
[347749944,1736093469648,-906.26,9.863e-05,2]
[347749945,1736093469658,-3974.11,9.863e-05,2]
[347749946,1736093469667,-1573.57,9.863e-05,2]
[347749947,1736093469678,-500.0,9.863e-05,2]
[347749948,1736093469688,-500.0,9.863e-05,2]
[347749949,1736093469696,-809.64,9.863e-05,2]
[347749950,1736093469705,-703.17,9.863e-05,2]
[347749951,1736093469715,-500.0,9.863e-05,2]
[347749952,1736093469725,-591.69,9.863e-05,2]
[347749953,1736093469735,-500.0,9.863e-05,2]
[347749954,1736093469745,-1135.97,9.863e-05,2]
[347749955,1736093469754,-520.01,9.863e-05,2]
[347749956,1736093469764,-1452.66,9.863e-05,2]
[347749957,1736093469774,-1808.46,9.863e-05,2]
[347749958,1736093469783,-602.76,9.863e-05,2]
[347749959,1736093469793,-500.0,9.863e-05,2]
[347749960,1736093469802,-833.46,9.863e-05,2]
[347749961,1736093469811,-618.53,9.863e-05,2]
[347749962,1736093469820,-651.97,9.863e-05,2]
[347749963,1736093469830,-1575.34,9.863e-05,2]
[347749964,1736093469840,-911.74,9.863e-05,2]
[347749965,1736093469849,-568.0,9.863e-05,2]
[347749966,1736093469858,-1028.15,9.863e-05,2]
[347749967,1736093469867,-721.89,9.863e-05,2]
[347749968,1736093469877,-633.58,9.863e-05,2]
[347749969,1736093469887,-500.0,9.863e-05,2]
[347749970,1736093469897,-3107.24,9.863e-05,2]
[347749971,1736093469906,-1378.57,9.863e-05,2]
[347749972,1736093469916,-500.0,9.863e-05,2]
[347749973,1736093469925,-675.6,9.863e-05,2]
[347749974,1736093469935,-500.0,9.863e-05,2]
[347749975,1736093469944,-790.0,9.863e-05,2]
[347749976,1736093469955,-500.0,9.863e-05,2]
[347749977,1736093469966,-1312.45,9.863e-05,2]
[347749978,1736093469976,-747.11,9.863e-05,2]
[347749979,1736093469986,-2431.88,9.863e-05,2]
[347749980,1736093469996,-660.9,9.863e-05,2]
[347749981,1736093470006,-741.89,9.863e-05,2]
[347749982,1736093470016,-500.0,9.863e-05,2]
[347749983,1736093470027,-998.2,9.863e-05,2]
[347749984,1736093470039,-742.57,9.863e-05,2]
[347749985,1736093470049,-950.19,9.863e-05,2]
[347749986,1736093470060,-545.49,9.863e-05,2]
[347749987,1736093470070,-851.4,9.863e-05,2]
[347749988,1736093470081,-500.0,9.863e-05,2]
[347749989,1736093470092,-1502.24,9.863e-05,2]
[347749990,1736093470101,-500.0,9.863e-05,2]
[347749991,1736093470110,-1529.57,9.863e-05,2]
[347749992,1736093470119,-775.67,9.863e-05,2]
[347749993,1736093470128,-829.09,9.863e-05,2]
[347749994,1736093470137,-500.0,9.863e-05,2]
[347749995,1736093470147,-643.9,9.863e-05,2]
[347749996,1736093470156,-596.39,9.863e-05,2]
[347749997,1736093470165,-1972.78,9.863e-05,2]
[347749998,1736093470175,-2401.07,9.863e-05,2]
[347749999,1736093470186,-376.057504,9.863e-05,2]
[347750000,1736093470196,-500.0,9.863e-05,2]
[347750001,1736093470205,-500.0,9.863e-05,2]
[347750002,1736093470214,-7216.14,9.863e-05,2]
[347750003,1736093470224,-4809.85,9.863e-05,2]
[347750004,1736093470233,-500.0,9.863e-05,2]
[347750005,1736093470243,-500.0,9.863e-05,2]
[347750006,1736093470252,-1336.17,9.863e-05,2]
[347750007,1736093470261,-4510.33,9.863e-05,2]
[347750008,1736093470271,-664.2,9.863e-05,2]
[347750009,1736093470280,-2680.26,9.863e-05,2]
[347750010,1736093470290,-897.44,9.863e-05,2]
[347750011,1736093470300,-376.812101,9.863e-05,2]
[347750012,1736093470310,-402.062172,9.863e-05,2]
[347750013,1736093470319,-514.62,9.863e-05,2]
[347750014,1736093470329,-863.94,9.863e-05,2]
[347750015,1736093470338,-2020.86,9.863e-05,2]
[347750016,1736093470347,-500.0,9.863e-05,2]
[347750017,1736093470357,-845.14,9.863e-05,2]
[347750018,1736093470366,-1165.06,9.863e-05,2]
[347750019,1736093470377,-898.28,9.863e-05,2]
[347750020,1736093470387,-500.0,9.863e-05,2]
[347750021,1736093470397,-682.97,9.863e-05,2]
[347750022,1736093470407,-377.384262,9.863e-05,2]
[347750023,1736093470416,-402.854924,9.863e-05,2]
[347750024,1736093470427,-4822.3,9.863e-05,2]
[347750025,1736093470437,-2567.67,9.863e-05,2]
[347750026,1736093470447,-820.85,9.863e-05,2]
[347750027,1736093470456,-1978.57,9.863e-05,2]
[347750028,1736093470465,-730.9,9.863e-05,2]
[347750029,1736093470475,-905.94,9.863e-05,2]
[347750030,1736093470485,-500.0,9.863e-05,2]
[347750031,1736093470498,-924.98,9.863e-05,2]
[347750032,1736093470508,-730.86,9.863e-05,2]
[347750033,1736093470518,-500.0,9.863e-05,2]
[347750034,1736093470528,-500.0,9.863e-05,2]
[347750035,1736093470539,-500.0,9.863e-05,2]
[347750036,1736093470548,-1891.01,9.863e-05,2]
[347750037,1736093470558,-1979.73,9.863e-05,2]
[347750038,1736093470569,-403.649579,9.863e-05,2]
[347750039,1736093470579,-377.632664,9.863e-05,2]
[347750040,1736093470590,-923.16,9.863e-05,2]
[347750041,1736093470599,-1008.74,9.863e-05,2]
[347750042,1736093470609,-5323.99,9.863e-05,2]
[347750043,1736093470618,-634.71,9.863e-05,2]
[347750044,1736093470627,-654.82,9.863e-05,2]
[347750045,1736093470637,-1030.31,9.863e-05,2]
[347750046,1736093470646,-910.23,9.863e-05,2]
[347750047,1736093470655,-6129.68,9.863e-05,2]
[347750048,1736093470664,-599.32,9.863e-05,2]
[347750049,1736093470674,-404.206485,9.863e-05,2]
[347750050,1736093470686,-3801.67,9.863e-05,2]
[347750051,1736093470695,-500.0,9.863e-05,2]
[347750052,1736093470705,-2105.78,9.863e-05,2]
[347750053,1736093470714,-1038.71,9.863e-05,2]
[347750054,1736093470722,-2739.97,9.863e-05,2]
[347750055,1736093470732,-363.36382991,9.863e-05,2]
[347750056,1736093470741,-1877.63,9.863e-05,2]
[347750057,1736093470751,-1306.48,9.863e-05,2]
[347750058,1736093470760,-700.64,9.863e-05,2]
[347750059,1736093470770,-377.522457,9.863e-05,2]
[347750060,1736093470779,-1088.73,9.863e-05,2]
[347750061,1736093470789,-4575.44,9.863e-05,2]
[347750062,1736093470798,-1166.76,9.863e-05,2]
[347750063,1736093470807,-500.0,9.863e-05,2]
[347750064,1736093470817,-3359.4,9.863e-05,2]
[347750065,1736093470827,-844.34,9.863e-05,2]
[347750066,1736093470836,-500.0,9.863e-05,2]
[347750067,1736093470845,-524.21,9.863e-05,2]
[347750068,1736093470854,-1166.37,9.863e-05,2]
[347750069,1736093470864,-502.97,9.863e-05,2]
[347750070,1736093470873,-1494.76,9.863e-05,2]
[347750071,1736093470883,-2102.36,9.863e-05,2]
[347750072,1736093470892,-1697.98,9.863e-05,2]
[347750073,1736093470901,-500.0,9.863e-05,2]
[347750074,1736093470910,-377.105117,9.863e-05,2]
[347750075,1736093470920,-2476.3,9.863e-05,2]
[347750076,1736093470931,-404.362946,9.863e-05,2]
[347750077,1736093470940,-707.61,9.863e-05,2]
[347750078,1736093470950,-2758.22,9.863e-05,2]
[347750079,1736093470960,-500.0,9.863e-05,2]
[347750080,1736093470970,-1004.07,9.863e-05,2]
[347750081,1736093470979,-500.0,9.863e-05,2]
[347750082,1736093470989,-994.13,9.863e-05,2]
[347750083,1736093470999,-540.89,9.863e-05,2]
[347750084,1736093471009,-936.98,9.863e-05,2]
[347750085,1736093471018,-638.23,9.863e-05,2]
[347750086,1736093471028,-500.0,9.863e-05,2]
[347750087,1736093471038,-714.43,9.863e-05,2]
[347750088,1736093471047,-500.0,9.863e-05,2]
[347750089,1736093471056,-376.50909,9.863e-05,2]
[347750090,1736093471065,-404.088734,9.863e-05,2]
[347750091,1736093471075,-4018.14,9.863e-05,2]
[347750092,1736093471085,-579.85,9.863e-05,2]
[347750093,1736093471094,-554.81,9.863e-05,2]
[347750094,1736093471103,-768.81,9.863e-05,2]
[347750095,1736093471113,-576.42,9.863e-05,2]
[347750096,1736093471122,-1663.25,9.863e-05,2]
[347750097,1736093471132,-500.0,9.863e-05,2]
[347750098,1736093471141,-375.919903,9.863e-05,2]
[347750099,1736093471151,-500.0,9.863e-05,2]
[347750100,1736093471161,-870.76,9.863e-05,2]
[347750101,1736093471170,-3514.34,9.863e-05,2]
[347750102,1736093471179,-403.4983,9.863e-05,2]
[347750103,1736093471189,-972.86,9.863e-05,2]
[347750104,1736093471199,-500.0,9.863e-05,2]
[347750105,1736093471208,-1212.28,9.863e-05,2]
[347750106,1736093471217,-626.28,9.863e-05,2]
[347750107,1736093471227,-1177.81,9.863e-05,2]
[347750108,1736093471236,-928.76,9.863e-05,2]
[347750109,1736093471246,-1032.98,9.863e-05,2]
[347750110,1736093471255,-807.78,9.863e-05,2]
[347750111,1736093471265,-569.16,9.863e-05,2]
[347750112,1736093471275,-2723.22,9.863e-05,2]
[347750113,1736093471285,-402.803781,9.863e-05,2]
[347750114,1736093471295,-647.44,9.863e-05,2]
[347750115,1736093471304,-375.527974,9.863e-05,2]
[347750116,1736093471314,-586.44,9.863e-05,2]
[347750117,1736093471324,-2820.24,9.863e-05,2]
[347750118,1736093471334,-1463.16,9.863e-05,2]
[347750119,1736093471343,-625.48,9.863e-05,2]
[347750120,1736093471353,-2129.06,9.863e-05,2]
[347750121,1736093471362,-758.75,9.863e-05,2]
[347750122,1736093471371,-7531.06,9.863e-05,2]
[347750123,1736093471381,-2335.63,9.863e-05,2]
[347750124,1736093471391,-500.0,9.863e-05,2]
[347750125,1736093471401,-931.19,9.863e-05,2]
[347750126,1736093471411,-1840.4,9.863e-05,2]
[347750127,1736093471421,-803.93,9.863e-05,2]
[347750128,1736093471432,-917.79,9.863e-05,2]
[347750129,1736093471442,-1119.32,9.863e-05,2]
[347750130,1736093471454,-402.22777,9.863e-05,2]
[347750131,1736093471464,-500.0,9.863e-05,2]
[347750132,1736093471473,-3520.61,9.863e-05,2]
[347750133,1736093471483,-706.11,9.863e-05,2]
[347750134,1736093471497,-500.0,9.863e-05,2]
[347750135,1736093471506,-4019.56,9.863e-05,2]
[347750136,1736093471516,-717.02,9.863e-05,2]
[347750137,1736093471526,-557.28,9.863e-05,2]
[347750138,1736093471600,-194.05,9.864e-05,2]
[347750139,1736093471611,-429.58022011,9.919e-05,2]
[347750140,1736093471621,-150.0,9.92e-05,2]
[347750141,1736093471631,-1200.37570421,9.934e-05,2]
[347750142,1736093471640,-150.0,9.958e-05,2]
[347750143,1736093471650,-20862.58344551,9.97e-05,4]
[347750144,1736093471659,-949.4051284,9.971e-05,2]
[347750145,1736093471669,-2904.42412994,0.0001,2]
[347750146,1736093471678,-151.24709819,0.0001,2]
[347750147,1736093471687,-2621.6057294,0.0001,2]
[347750148,1736093471696,-101307.54724921,0.0001,2]
[347750149,1736093471706,-461914.40470464,0.0001,2]
[347750150,1736093471715,-1129.73580448,0.0001,2]
[347750151,1736093471726,-806.92,0.0001,2]
[347750152,1736093471735,-3000.0,0.0001,2]
[347750153,1736093471745,-723.6674313,0.0001,2]
[347750154,1736093471755,-723.66743122,0.0001,2]
[347750155,1736093471765,-723.66743122,0.0001,2]
[347750156,1736093471778,-723.66743122,0.0001,2]
[347750157,1736093471789,-723.66743122,0.0001,2]
[347750158,1736093471798,-723.66743122,0.0001,2]
[347750159,1736093471807,-723.66743122,0.0001,2]
[347750160,1736093471818,-150.0,0.00010016,2]
[347750161,1736093471829,-823.0,0.00010036,2]
[347750162,1736093471840,-150.0,0.00010061,2]
[347750163,1736093471849,-753.08,0.00010061,2]
[347750164,1736093471860,-150.0,0.00010131,2]
[347750165,1736093471869,-500.0,0.00010136,2]
[347750166,1736093471878,-500.0,0.00010136,2]
[347750167,1736093471887,-500.0,0.00010136,2]
[347750168,1736093471896,-500.0,0.00010136,2]
[347750169,1736093471905,-518.61,0.00010136,2]
[347750170,1736093471914,-500.0,0.00010136,2]
[347750171,1736093471923,-1944.31,0.00010136,2]
[347750172,1736093471934,-500.0,0.00010136,2]
[347750173,1736093471943,-628.23666726,0.00010136,2]
[347750174,1736093471953,-500.0,0.00010136,2]
[347750175,1736093471962,-500.0,0.00010136,2]
[347750176,1736093471971,-513.01,0.00010136,2]
[347750177,1736093471980,-1116.95,0.00010136,2]
[347750178,1736093471989,-647.32,0.00010136,2]
[347750179,1736093471998,-500.0,0.00010136,2]
[347750180,1736093472007,-1247.07,0.00010136,2]
[347750181,1736093472016,-710.57,0.00010136,2]